[Event "Titled Tuesday Blitz February 14 Early 2023"]
[White "Lesbekova, Assel"]
[Black "Manukian, Artak"]
[WhiteFideId "13713248"]
[BlackFideId "13301373"]
[WhiteElo "1772"]
[BlackElo "2196"]
[Result "0-1"]
[Round "06"]
[TimeControl "180+2"]
[Date "2023.02.15"]
[WhiteClock "0:01:23"]
[BlackClock "0:00:38"]

1. e4 {[%clk 0:03:00]}  c6 {[%clk 0:02:41]} 2. d4 {[%clk 0:02:58]}  d5 {[%clk 0:02:40]} 3. Nd2 {[%clk 0:02:59]}  dxe4 {[%clk 0:02:40]} 4. Nxe4 {[%clk 0:03:00]}  Nf6 {[%clk 0:02:41]} 5. Ng3 {[%clk 0:02:59]}  Bg4 {[%clk 0:02:40]} 6. f3 {[%clk 0:02:57]}  Bd7 {[%clk 0:02:39]} 7. Bf4 {[%clk 0:02:56]}  Nd5 {[%clk 0:02:38]} 8. Bd2 {[%clk 0:02:55]}  b5 {[%clk 0:02:38]} 9. N1e2 {[%clk 0:02:53]}  e6 {[%clk 0:02:37]} 10. Nf4 {[%clk 0:02:54]}  Bd6 {[%clk 0:02:36]} 11. Nxd5 {[%clk 0:02:53]}  exd5 {[%clk 0:02:36]} 12. Bd3 {[%clk 0:02:52]}  O-O {[%clk 0:02:35]} 13. O-O {[%clk 0:02:51]}  Qh4 {[%clk 0:02:34]} 14. f4 {[%clk 0:02:50]}  g6 {[%clk 0:02:32]} 15. Qf3 {[%clk 0:02:46]}  Bg4 {[%clk 0:02:30]} 16. Qf2 {[%clk 0:02:46]}  Nd7 {[%clk 0:02:29]} 17. f5 {[%clk 0:02:40]}  Nf6 {[%clk 0:02:21]} 18. Bf4 {[%clk 0:02:31]}  Bxf4 {[%clk 0:02:00]} 19. Qxf4 {[%clk 0:02:32]}  g5 {[%clk 0:01:33]} 20. Qd6 {[%clk 0:02:24]}  Kg7 {[%clk 0:01:24]} 21. h3 {[%clk 0:02:17]}  Bh5 {[%clk 0:01:21]} 22. Nxh5+ {[%clk 0:02:15]}  Qxh5 {[%clk 0:01:12]} 23. Rae1 {[%clk 0:02:12]}  Qh4 {[%clk 0:01:07]} 24. c3 {[%clk 0:01:58]}  Rae8 {[%clk 0:01:06]} 25. Rxe8 {[%clk 0:01:50]}  Rxe8 {[%clk 0:01:07]} 26. Qxc6 {[%clk 0:01:48]}  Qg3 {[%clk 0:01:02]} 27. Rf3 {[%clk 0:01:41]}  Re1+ {[%clk 0:00:59]} 28. Bf1 {[%clk 0:01:41]}  Qb8 {[%clk 0:00:55]} 29. Kf2 {[%clk 0:01:27]}  Rb1 {[%clk 0:00:50]} 30. Qxb5 {[%clk 0:01:23]}  Ne4+ {[%clk 0:00:45]} 31. Ke3 {[%clk 0:01:23]}  Re1+ {[%clk 0:00:38]} 0-1


[Site "https://www.chess.com"]

[Event "Titled Tuesday Blitz February 14 Early 2023"]
[White "Womacka, Mathias"]
[Black "De Souza, Cristiano Gomes"]
[WhiteFideId "4611390"]
[BlackFideId "2151758"]
[WhiteElo "2396"]
[BlackElo "2018"]
[Result "1-0"]
[Round "06"]
[TimeControl "180+2"]
[Date "2023.02.15"]
[WhiteClock "0:02:05"]
[BlackClock "0:01:14"]

1. e4 {[%clk 0:03:00]}  c5 {[%clk 0:02:58]} 2. Nf3 {[%clk 0:03:00]}  d6 {[%clk 0:02:58]} 3. d4 {[%clk 0:03:01]}  cxd4 {[%clk 0:02:57]} 4. Nxd4 {[%clk 0:03:02]}  Nf6 {[%clk 0:02:56]} 5. Nc3 {[%clk 0:03:02]}  g6 {[%clk 0:02:56]} 6. Be3 {[%clk 0:03:01]}  Bg7 {[%clk 0:02:56]} 7. f3 {[%clk 0:03:01]}  O-O {[%clk 0:02:56]} 8. Qd2 {[%clk 0:03:01]}  Nc6 {[%clk 0:02:56]} 9. O-O-O {[%clk 0:03:02]}  d5 {[%clk 0:02:56]} 10. exd5 {[%clk 0:03:03]}  Nxd5 {[%clk 0:02:55]} 11. Nxc6 {[%clk 0:03:03]}  bxc6 {[%clk 0:02:55]} 12. Bd4 {[%clk 0:03:04]}  e5 {[%clk 0:02:52]} 13. Bc5 {[%clk 0:03:04]}  Be6 {[%clk 0:02:52]} 14. Ne4 {[%clk 0:03:03]}  Re8 {[%clk 0:02:47]} 15. h4 {[%clk 0:03:03]}  h6 {[%clk 0:02:45]} 16. g4 {[%clk 0:03:03]}  Qc7 {[%clk 0:02:38]} 17. g5 {[%clk 0:03:02]}  h5 {[%clk 0:02:37]} 18. Bc4 {[%clk 0:03:03]}  Red8 {[%clk 0:02:30]} 19. Qe1 {[%clk 0:03:02]}  Nf4 {[%clk 0:02:28]} 20. Bxe6 {[%clk 0:02:58]}  Nxe6 {[%clk 0:02:27]} 21. Bd6 {[%clk 0:02:58]}  Qb6 {[%clk 0:02:22]} 22. Nf6+ {[%clk 0:02:57]}  Bxf6 {[%clk 0:02:19]} 23. gxf6 {[%clk 0:02:57]}  Nd4 {[%clk 0:02:07]} 24. Qxe5 {[%clk 0:02:55]}  Nxf3 {[%clk 0:02:00]} 25. Qf4 {[%clk 0:02:54]}  Nd4 {[%clk 0:01:28]} 26. Rxd4 {[%clk 0:02:38]}  Rab8 {[%clk 0:01:16]} 27. Bxb8 {[%clk 0:02:07]}  Rxd4 {[%clk 0:01:14]} 28. Qh6 {[%clk 0:02:05]} 1-0


[Site "https://www.chess.com"]

[Event "Titled Tuesday Blitz February 14 Early 2023"]
[White "Slade, Theodore"]
[Black "Thiel, Thomas"]
[WhiteFideId "426547"]
[BlackFideId "4615964"]
[WhiteElo "1995"]
[BlackElo "2234"]
[Result "0-1"]
[Round "06"]
[TimeControl "180+2"]
[Date "2023.02.15"]
[WhiteClock "0:01:28"]
[BlackClock "0:01:02"]

1. d4 {[%clk 0:03:00]}  Nf6 {[%clk 0:02:58]} 2. c4 {[%clk 0:03:01]}  g6 {[%clk 0:02:57]} 3. Nc3 {[%clk 0:03:01]}  d5 {[%clk 0:02:54]} 4. cxd5 {[%clk 0:03:02]}  Nxd5 {[%clk 0:02:53]} 5. e4 {[%clk 0:03:02]}  Nxc3 {[%clk 0:02:53]} 6. bxc3 {[%clk 0:03:03]}  Bg7 {[%clk 0:02:52]} 7. Bc4 {[%clk 0:03:04]}  c5 {[%clk 0:02:51]} 8. Ne2 {[%clk 0:03:04]}  O-O {[%clk 0:02:49]} 9. O-O {[%clk 0:03:04]}  Nc6 {[%clk 0:02:48]} 10. Be3 {[%clk 0:03:05]}  b6 {[%clk 0:02:47]} 11. Rc1 {[%clk 0:03:05]}  cxd4 {[%clk 0:02:42]} 12. cxd4 {[%clk 0:03:05]}  Bb7 {[%clk 0:02:42]} 13. Bd5 {[%clk 0:02:57]}  Rc8 {[%clk 0:02:39]} 14. Bxc6 {[%clk 0:02:57]}  Bxc6 {[%clk 0:02:37]} 15. d5 {[%clk 0:02:57]}  Bb5 {[%clk 0:02:35]} 16. Rxc8 {[%clk 0:02:50]}  Qxc8 {[%clk 0:02:36]} 17. Re1 {[%clk 0:02:45]}  Qa6 {[%clk 0:02:34]} 18. Qd2 {[%clk 0:02:39]}  Bc4 {[%clk 0:02:01]} 19. Bd4 {[%clk 0:02:23]}  Qxa2 {[%clk 0:01:31]} 20. Qxa2 {[%clk 0:02:24]}  Bxa2 {[%clk 0:01:31]} 21. Rc1 {[%clk 0:02:03]}  Bxd4 {[%clk 0:01:11]} 22. Nxd4 {[%clk 0:02:04]}  Rd8 {[%clk 0:01:10]} 23. Rc7 {[%clk 0:02:01]}  Bxd5 {[%clk 0:01:02]} 24. exd5 {[%clk 0:01:38]}  Rxd5 {[%clk 0:01:03]} 25. Rc4 {[%clk 0:01:28]}  e5 {[%clk 0:01:02]} 0-1


[Site "https://www.chess.com"]

[Event "Titled Tuesday Blitz February 14 Early 2023"]
[White "Barrera Rincones, Josmar Joel"]
[Black "Goltseva, Ekaterina"]
[WhiteFideId "3975487"]
[BlackFideId "24173770"]
[WhiteElo "1399"]
[BlackElo "2283"]
[Result "0-1"]
[Round "06"]
[TimeControl "180+2"]
[Date "2023.02.15"]
[WhiteClock "0:00:13"]
[BlackClock "0:00:12"]

1. d4 {[%clk 0:03:00]}  d5 {[%clk 0:02:57]} 2. c4 {[%clk 0:03:00]}  dxc4 {[%clk 0:02:55]} 3. Nf3 {[%clk 0:02:57]}  a6 {[%clk 0:02:46]} 4. a4 {[%clk 0:02:56]}  Nf6 {[%clk 0:02:44]} 5. e3 {[%clk 0:02:56]}  Bg4 {[%clk 0:02:44]} 6. Bxc4 {[%clk 0:02:56]}  e6 {[%clk 0:02:44]} 7. h3 {[%clk 0:02:55]}  Bh5 {[%clk 0:02:43]} 8. O-O {[%clk 0:02:53]}  Nc6 {[%clk 0:02:43]} 9. Nbd2 {[%clk 0:02:47]}  Bd6 {[%clk 0:02:42]} 10. b3 {[%clk 0:02:42]}  e5 {[%clk 0:02:38]} 11. dxe5 {[%clk 0:02:39]}  Nxe5 {[%clk 0:02:33]} 12. Be2 {[%clk 0:02:38]}  O-O {[%clk 0:02:30]} 13. Bb2 {[%clk 0:02:38]}  Qe7 {[%clk 0:02:21]} 14. Nd4 {[%clk 0:02:37]}  Bg6 {[%clk 0:02:17]} 15. N2f3 {[%clk 0:02:34]}  Rad8 {[%clk 0:02:06]} 16. Qc1 {[%clk 0:02:02]}  Nd3 {[%clk 0:01:54]} 17. Bxd3 {[%clk 0:01:42]}  Bxd3 {[%clk 0:01:55]} 18. Rd1 {[%clk 0:01:43]}  Be4 {[%clk 0:01:53]} 19. Ne2 {[%clk 0:01:12]}  Bxf3 {[%clk 0:01:45]} 20. gxf3 {[%clk 0:01:13]}  Qe6 {[%clk 0:01:45]} 21. Kg2 {[%clk 0:01:06]}  Nh5 {[%clk 0:01:38]} 22. Qc4 {[%clk 0:01:02]}  Qg6+ {[%clk 0:01:18]} 23. Qg4 {[%clk 0:01:02]}  Qc2 {[%clk 0:01:18]} 24. Qxh5 {[%clk 0:00:51]}  Qxb2 {[%clk 0:01:15]} 25. Nd4 {[%clk 0:00:47]}  g6 {[%clk 0:01:08]} 26. Qg4 {[%clk 0:00:38]}  c5 {[%clk 0:01:02]} 27. Ne6 {[%clk 0:00:35]}  fxe6 {[%clk 0:00:51]} 28. Qxe6+ {[%clk 0:00:36]}  Rf7 {[%clk 0:00:46]} 29. Rab1 {[%clk 0:00:35]}  Qf6 {[%clk 0:00:42]} 30. Qe4 {[%clk 0:00:22]}  Rdf8 {[%clk 0:00:36]} 31. f4 {[%clk 0:00:22]}  Bc7 {[%clk 0:00:35]} 32. Rd5 {[%clk 0:00:19]}  b6 {[%clk 0:00:33]} 33. Rbd1 {[%clk 0:00:18]}  Re7 {[%clk 0:00:32]} 34. Qf3 {[%clk 0:00:18]}  Qe6 {[%clk 0:00:32]} 35. Rg5 {[%clk 0:00:17]}  Qe4 {[%clk 0:00:30]} 36. Qxe4 {[%clk 0:00:17]}  Rxe4 {[%clk 0:00:31]} 37. Rd7 {[%clk 0:00:18]}  Rf7 {[%clk 0:00:31]} 38. Rdd5 {[%clk 0:00:18]}  Kg7 {[%clk 0:00:30]} 39. h4 {[%clk 0:00:18]}  h6 {[%clk 0:00:29]} 40. Rg3 {[%clk 0:00:18]}  Re6 {[%clk 0:00:28]} 41. h5 {[%clk 0:00:17]}  g5 {[%clk 0:00:28]} 42. Rg4 {[%clk 0:00:18]}  Ref6 {[%clk 0:00:24]} 43. f3 {[%clk 0:00:18]}  Rf5 {[%clk 0:00:23]} 44. Rd1 {[%clk 0:00:14]}  Kh7 {[%clk 0:00:23]} 45. fxg5 {[%clk 0:00:15]}  hxg5 {[%clk 0:00:20]} 46. Rf1 {[%clk 0:00:11]}  b5 {[%clk 0:00:20]} 47. e4 {[%clk 0:00:11]}  R5f6 {[%clk 0:00:14]} 48. Rxg5 {[%clk 0:00:10]}  Rg7 {[%clk 0:00:14]} 49. Rxg7+ {[%clk 0:00:11]}  Kxg7 {[%clk 0:00:15]} 50. Rd1 {[%clk 0:00:11]}  c4 {[%clk 0:00:13]} 51. bxc4 {[%clk 0:00:11]}  bxc4 {[%clk 0:00:12]} 52. Rd7+ {[%clk 0:00:12]}  Rf7 {[%clk 0:00:12]} 53. Rd5 {[%clk 0:00:13]}  Bb6 {[%clk 0:00:11]} 54. Rd6 {[%clk 0:00:11]}  Ba5 {[%clk 0:00:03]} 55. Rc6 {[%clk 0:00:11]}  Rc7 {[%clk 0:00:03]} 56. Rxa6 {[%clk 0:00:10]}  c3 {[%clk 0:00:03]} 57. Rxa5 {[%clk 0:00:10]}  c2 {[%clk 0:00:04]} 58. Rg5+ {[%clk 0:00:10]}  Kh6 {[%clk 0:00:03]} 59. Rg6+ {[%clk 0:00:10]}  Kxh5 {[%clk 0:00:04]} 60. Rg7 {[%clk 0:00:08]}  Rxg7+ {[%clk 0:00:03]} 61. Kf2 {[%clk 0:00:09]}  c1=Q {[%clk 0:00:04]} 62. e5 {[%clk 0:00:09]}  Qc2+ {[%clk 0:00:04]} 63. Ke3 {[%clk 0:00:10]}  Qxa4 {[%clk 0:00:05]} 64. f4 {[%clk 0:00:09]}  Re7 {[%clk 0:00:06]} 65. Kf3 {[%clk 0:00:10]}  Qd4 {[%clk 0:00:07]} 66. Kg3 {[%clk 0:00:10]}  Rf7 {[%clk 0:00:07]} 67. Kf3 {[%clk 0:00:11]}  Qxf4+ {[%clk 0:00:08]} 68. Ke2 {[%clk 0:00:12]}  Qe4+ {[%clk 0:00:08]} 69. Kd2 {[%clk 0:00:11]}  Rd7+ {[%clk 0:00:09]} 70. Kc3 {[%clk 0:00:12]}  Qc6+ {[%clk 0:00:09]} 71. Kb4 {[%clk 0:00:13]}  Rb7+ {[%clk 0:00:10]} 72. Ka5 {[%clk 0:00:14]}  Qb6+ {[%clk 0:00:11]} 73. Ka4 {[%clk 0:00:13]}  Qa6# {[%clk 0:00:12]} 0-1


[Site "https://www.chess.com"]

[Event "Titled Tuesday Blitz February 14 Early 2023"]
[White "Janaszak, Dawid"]
[Black "Prieto Aranguren, Alain"]
[WhiteFideId "1119206"]
[BlackFideId "2268906"]
[WhiteElo "2316"]
[BlackElo "2258"]
[Result "0-1"]
[Round "06"]
[TimeControl "180+2"]
[Date "2023.02.15"]
[WhiteClock "0:01:42"]
[BlackClock "0:01:52"]

1. f4 {[%clk 0:03:00]}  c6 {[%clk 0:02:59]} 2. Nf3 {[%clk 0:02:59]}  d6 {[%clk 0:02:58]} 3. b3 {[%clk 0:02:58]}  g6 {[%clk 0:02:58]} 4. Bb2 {[%clk 0:02:59]}  Nf6 {[%clk 0:02:58]} 5. e4 {[%clk 0:02:59]}  Bg7 {[%clk 0:02:57]} 6. d3 {[%clk 0:02:59]}  O-O {[%clk 0:02:57]} 7. Be2 {[%clk 0:02:59]}  Qb6 {[%clk 0:02:54]} 8. Bd4 {[%clk 0:02:57]}  c5 {[%clk 0:02:52]} 9. Bb2 {[%clk 0:02:54]}  c4 {[%clk 0:02:29]} 10. Nbd2 {[%clk 0:02:25]}  Ng4 {[%clk 0:02:19]} 11. Nxc4 {[%clk 0:02:13]}  Qf2+ {[%clk 0:02:17]} 12. Kd2 {[%clk 0:02:13]}  Bxb2 {[%clk 0:02:16]} 13. Nxb2 {[%clk 0:02:14]}  Qe3+ {[%clk 0:02:13]} 14. Kc3 {[%clk 0:02:01]}  Nf2 {[%clk 0:02:02]} 15. Qc1 {[%clk 0:01:53]}  Nxe4+ {[%clk 0:01:56]} 16. Kb4 {[%clk 0:01:42]}  Qc5+ {[%clk 0:01:52]} 0-1


[Site "https://www.chess.com"]

[Event "Titled Tuesday Blitz February 14 Early 2023"]
[White "Cunha, Lucas Aguiar"]
[Black "Alice, Mateus Felizardo Viageiro"]
[WhiteFideId "2125404"]
[BlackFideId "14800047"]
[WhiteElo "2309"]
[BlackElo "2202"]
[Result "1-0"]
[Round "06"]
[TimeControl "180+2"]
[Date "2023.02.15"]
[WhiteClock "0:01:36"]
[BlackClock "0:01:26"]

1. e4 {[%clk 0:03:00]}  c5 {[%clk 0:02:55]} 2. Nf3 {[%clk 0:02:57]}  d6 {[%clk 0:02:54]} 3. d4 {[%clk 0:02:56]}  cxd4 {[%clk 0:02:54]} 4. Qxd4 {[%clk 0:02:57]}  Nc6 {[%clk 0:02:53]} 5. Bb5 {[%clk 0:02:58]}  Bd7 {[%clk 0:02:52]} 6. Bxc6 {[%clk 0:02:58]}  bxc6 {[%clk 0:02:53]} 7. O-O {[%clk 0:02:56]}  e5 {[%clk 0:02:47]} 8. Qd3 {[%clk 0:02:55]}  h6 {[%clk 0:02:46]} 9. c4 {[%clk 0:02:56]}  c5 {[%clk 0:02:46]} 10. Nc3 {[%clk 0:02:54]}  Nf6 {[%clk 0:02:45]} 11. Re1 {[%clk 0:02:49]}  Be7 {[%clk 0:02:44]} 12. Nd2 {[%clk 0:02:49]}  O-O {[%clk 0:02:42]} 13. Nf1 {[%clk 0:02:50]}  Be6 {[%clk 0:02:40]} 14. Ne3 {[%clk 0:02:50]}  Qc7 {[%clk 0:02:39]} 15. b3 {[%clk 0:02:49]}  Rfd8 {[%clk 0:02:35]} 16. Bb2 {[%clk 0:02:50]}  Qc6 {[%clk 0:02:31]} 17. Rad1 {[%clk 0:02:49]}  Bf8 {[%clk 0:02:30]} 18. f3 {[%clk 0:02:43]}  Nh5 {[%clk 0:02:29]} 19. Ncd5 {[%clk 0:02:38]}  Nf4 {[%clk 0:02:24]} 20. Nxf4 {[%clk 0:02:37]}  exf4 {[%clk 0:02:24]} 21. Nd5 {[%clk 0:02:36]}  Bxd5 {[%clk 0:02:23]} 22. Qxd5 {[%clk 0:02:37]}  Qxd5 {[%clk 0:02:23]} 23. Rxd5 {[%clk 0:02:38]}  Rdb8 {[%clk 0:02:15]} 24. Bc1 {[%clk 0:02:35]}  g5 {[%clk 0:02:14]} 25. Red1 {[%clk 0:02:14]}  f6 {[%clk 0:02:12]} 26. Bb2 {[%clk 0:02:08]}  Kf7 {[%clk 0:02:11]} 27. Rf5 {[%clk 0:02:08]}  Be7 {[%clk 0:02:09]} 28. Bxf6 {[%clk 0:02:08]}  Ke6 {[%clk 0:01:39]} 29. Bxe7 {[%clk 0:02:02]}  Kxe7 {[%clk 0:01:37]} 30. e5 {[%clk 0:01:53]}  Rb7 {[%clk 0:01:36]} 31. exd6+ {[%clk 0:01:47]}  Ke6 {[%clk 0:01:33]} 32. Rxc5 {[%clk 0:01:48]}  Rd7 {[%clk 0:01:32]} 33. Rcd5 {[%clk 0:01:46]}  a5 {[%clk 0:01:30]} 34. Re1+ {[%clk 0:01:45]}  Kf6 {[%clk 0:01:29]} 35. c5 {[%clk 0:01:44]}  Rc8 {[%clk 0:01:28]} 36. Re4 {[%clk 0:01:38]}  Rc6 {[%clk 0:01:27]} 37. Kf2 {[%clk 0:01:36]}  Ra6 {[%clk 0:01:26]} 38. Ke2 {[%clk 0:01:36]} 1-0


[Site "https://www.chess.com"]

[Event "Titled Tuesday Blitz February 14 Early 2023"]
[White "Malka, Samuel"]
[Black "Jimenez, Joaquin"]
[WhiteFideId "20643675"]
[BlackFideId "109860"]
[WhiteElo "2165"]
[BlackElo "2195"]
[Result "1-0"]
[Round "06"]
[TimeControl "180+2"]
[Date "2023.02.15"]
[WhiteClock "0:00:19"]
[BlackClock "0:01:08"]

1. d4 {[%clk 0:03:00]}  Nf6 {[%clk 0:02:59]} 2. c4 {[%clk 0:03:01]}  g6 {[%clk 0:03:00]} 3. Nc3 {[%clk 0:03:02]}  Bg7 {[%clk 0:02:59]} 4. e4 {[%clk 0:03:02]}  d6 {[%clk 0:02:59]} 5. Nf3 {[%clk 0:03:03]}  O-O {[%clk 0:02:59]} 6. Be2 {[%clk 0:03:03]}  e5 {[%clk 0:03:00]} 7. O-O {[%clk 0:03:04]}  Nc6 {[%clk 0:02:59]} 8. d5 {[%clk 0:03:03]}  Ne7 {[%clk 0:03:00]} 9. Ne1 {[%clk 0:03:04]}  Nd7 {[%clk 0:02:59]} 10. Nd3 {[%clk 0:03:04]}  f5 {[%clk 0:03:00]} 11. f3 {[%clk 0:03:04]}  Nf6 {[%clk 0:03:00]} 12. b4 {[%clk 0:02:55]}  f4 {[%clk 0:03:00]} 13. c5 {[%clk 0:02:47]}  g5 {[%clk 0:03:00]} 14. a4 {[%clk 0:02:47]}  h5 {[%clk 0:02:56]} 15. Nf2 {[%clk 0:02:47]}  Ng6 {[%clk 0:02:55]} 16. a5 {[%clk 0:02:42]}  Rf7 {[%clk 0:02:53]} 17. c6 {[%clk 0:02:42]}  bxc6 {[%clk 0:02:46]} 18. dxc6 {[%clk 0:02:43]}  Kh8 {[%clk 0:02:38]} 19. Nd5 {[%clk 0:02:33]}  Nxd5 {[%clk 0:02:34]} 20. exd5 {[%clk 0:02:34]}  e4 {[%clk 0:02:32]} 21. Rb1 {[%clk 0:02:30]}  e3 {[%clk 0:02:28]} 22. Ne4 {[%clk 0:02:25]}  Ne5 {[%clk 0:02:25]} 23. Bb2 {[%clk 0:02:14]}  Bf5 {[%clk 0:02:17]} 24. Bd3 {[%clk 0:01:54]}  g4 {[%clk 0:02:11]} 25. fxg4 {[%clk 0:01:46]}  hxg4 {[%clk 0:02:09]} 26. Rxf4 {[%clk 0:01:43]}  Bxe4 {[%clk 0:01:39]} 27. Rxf7 {[%clk 0:01:15]}  Nxf7 {[%clk 0:01:39]} 28. Bxg7+ {[%clk 0:01:09]}  Kxg7 {[%clk 0:01:38]} 29. Qxg4+ {[%clk 0:01:06]}  Qg5 {[%clk 0:01:37]} 30. Qxe4 {[%clk 0:01:03]}  Rh8 {[%clk 0:01:34]} 31. Re1 {[%clk 0:00:43]}  Rh4 {[%clk 0:01:15]} 32. Qxe3 {[%clk 0:00:38]}  Qxe3+ {[%clk 0:01:14]} 33. Rxe3 {[%clk 0:00:39]}  Rxb4 {[%clk 0:01:14]} 34. Re7 {[%clk 0:00:38]}  Rd4 {[%clk 0:01:12]} 35. Bf1 {[%clk 0:00:21]}  Kf6 {[%clk 0:01:09]} 36. Rxc7 {[%clk 0:00:21]}  Rxd5 {[%clk 0:01:08]} 37. Rxf7+ {[%clk 0:00:19]} 1-0


[Site "https://www.chess.com"]

[Event "Titled Tuesday Blitz February 14 Early 2023"]
[White "Rodriguez Fontecha, Marcos"]
[Black "Fajdetic, Hrvoje"]
[WhiteFideId "2256576"]
[BlackFideId "14501945"]
[WhiteElo "2309"]
[BlackElo "2151"]
[Result "1/2-1/2"]
[Round "06"]
[TimeControl "180+2"]
[Date "2023.02.15"]
[WhiteClock "0:00:24"]
[BlackClock "0:00:11"]

1. Nf3 {[%clk 0:02:56]}  f5 {[%clk 0:02:59]} 2. g3 {[%clk 0:02:57]}  Nf6 {[%clk 0:02:59]} 3. Bg2 {[%clk 0:02:57]}  d6 {[%clk 0:03:00]} 4. O-O {[%clk 0:02:58]}  e5 {[%clk 0:03:01]} 5. d4 {[%clk 0:02:58]}  Be7 {[%clk 0:03:01]} 6. dxe5 {[%clk 0:02:58]}  dxe5 {[%clk 0:03:02]} 7. Qxd8+ {[%clk 0:02:58]}  Bxd8 {[%clk 0:03:03]} 8. Nxe5 {[%clk 0:02:58]}  O-O {[%clk 0:03:03]} 9. Rd1 {[%clk 0:02:56]}  c6 {[%clk 0:03:03]} 10. Nd2 {[%clk 0:02:38]}  Bc7 {[%clk 0:02:59]} 11. Ndf3 {[%clk 0:02:37]}  Na6 {[%clk 0:02:54]} 12. c3 {[%clk 0:02:31]}  Nc5 {[%clk 0:02:51]} 13. Bf4 {[%clk 0:02:24]}  Nce4 {[%clk 0:02:50]} 14. Nxc6 {[%clk 0:02:13]}  Bxf4 {[%clk 0:02:46]} 15. Ne7+ {[%clk 0:02:14]}  Kf7 {[%clk 0:02:47]} 16. Nxc8 {[%clk 0:02:14]}  Bc7 {[%clk 0:02:43]} 17. Nd4 {[%clk 0:02:02]}  Raxc8 {[%clk 0:02:35]} 18. Nxf5 {[%clk 0:02:02]}  g6 {[%clk 0:02:33]} 19. Ne3 {[%clk 0:01:58]}  Bb6 {[%clk 0:02:30]} 20. Rd3 {[%clk 0:01:54]}  Nxf2 {[%clk 0:02:21]} 21. Kxf2 {[%clk 0:01:54]}  Ng4+ {[%clk 0:02:21]} 22. Kf3 {[%clk 0:01:54]}  Nxe3 {[%clk 0:02:18]} 23. g4 {[%clk 0:01:38]}  Kg7+ {[%clk 0:02:12]} 24. Kg3 {[%clk 0:01:39]}  Nxg2 {[%clk 0:02:09]} 25. Kxg2 {[%clk 0:01:37]}  Rf2+ {[%clk 0:02:09]} 26. Kg3 {[%clk 0:01:37]}  Rxe2 {[%clk 0:02:09]} 27. Rd7+ {[%clk 0:01:37]}  Kg8 {[%clk 0:02:08]} 28. Rb1 {[%clk 0:01:34]}  Rce8 {[%clk 0:02:07]} 29. Rf1 {[%clk 0:01:19]}  g5 {[%clk 0:01:50]} 30. Rf3 {[%clk 0:01:13]}  R8e3 {[%clk 0:01:43]} 31. Rxe3 {[%clk 0:01:12]}  Rxe3+ {[%clk 0:01:43]} 32. Kg2 {[%clk 0:01:13]}  Re2+ {[%clk 0:01:41]} 33. Kg3 {[%clk 0:01:13]}  Rxb2 {[%clk 0:01:41]} 34. h4 {[%clk 0:01:12]}  Bf2+ {[%clk 0:01:39]} 35. Kf3 {[%clk 0:01:12]}  Bxh4 {[%clk 0:01:33]} 36. a4 {[%clk 0:01:12]}  Rb3 {[%clk 0:01:29]} 37. Rc7 {[%clk 0:01:12]}  Be1 {[%clk 0:01:28]} 38. Ke4 {[%clk 0:01:12]}  Rxc3 {[%clk 0:01:26]} 39. Rxb7 {[%clk 0:01:12]}  Rc4+ {[%clk 0:01:22]} 40. Kf5 {[%clk 0:01:12]}  Rxa4 {[%clk 0:01:15]} 41. Kxg5 {[%clk 0:01:13]}  Bd2+ {[%clk 0:01:13]} 42. Kf6 {[%clk 0:01:13]}  Ra6+ {[%clk 0:01:13]} 43. Kf5 {[%clk 0:01:12]}  Be3 {[%clk 0:01:08]} 44. Rb8+ {[%clk 0:01:11]}  Kf7 {[%clk 0:01:07]} 45. Rb7+ {[%clk 0:01:11]}  Kg8 {[%clk 0:01:07]} 46. Rb8+ {[%clk 0:01:11]}  Kg7 {[%clk 0:01:07]} 47. Rb7+ {[%clk 0:01:05]}  Kh6 {[%clk 0:01:04]} 48. Rb3 {[%clk 0:01:05]}  Bb6 {[%clk 0:00:52]} 49. Rd3 {[%clk 0:01:04]}  Ra5+ {[%clk 0:00:50]} 50. Kf6 {[%clk 0:01:05]}  Bd8+ {[%clk 0:00:20]} 51. Rxd8 {[%clk 0:01:05]}  Ra4 {[%clk 0:00:19]} 52. g5+ {[%clk 0:00:31]}  Kh5 {[%clk 0:00:19]} 53. Rh8 {[%clk 0:00:28]}  Ra6+ {[%clk 0:00:17]} 54. Kf5 {[%clk 0:00:25]}  Ra5+ {[%clk 0:00:17]} 55. Kf6 {[%clk 0:00:25]}  Rxg5 {[%clk 0:00:12]} 56. Rxh7+ {[%clk 0:00:25]}  Kg4 {[%clk 0:00:12]} 57. Rxa7 {[%clk 0:00:25]}  Rg8 {[%clk 0:00:11]} 58. Rg7+ {[%clk 0:00:23]}  Rxg7 {[%clk 0:00:11]} 59. Kxg7 {[%clk 0:00:24]} 1/2-1/2


[Site "https://www.chess.com"]